Cogmind - Beta 15 @@@ ROGUE MODE // 2025.09.24 @ 20:34:19 Player: beans Result: Destroyed by D-53 Grenadier with Mini Grenade Launcher Performance ------------- Evolutions (0) 0 Regions Visited (2) 400 Robots Destroyed (9) 45 Value Destroyed (220) 220 Prototype IDs (0) 0 Alien Tech Used (0) 0 Bonus (0) 0 TOTAL SCORE: 665 Bonus ------- None Cogmind --------- Core Integrity 0/250 Matter 219/300 Energy 240/250 System Corruption 6% Temperature Cool (0) Movement Core (250) Ox4 Location -10/Mines Parts ------- > --- POWER (1) -------- Ion Engine > --- PROPULSION (2) --- (None) > --- UTILITY (2) ------ Improved Targeting Computer Improved Targeting Computer > --- WEAPON (2) ------- Bore Cannon > --- INVENTORY (5) ---- Compact Matter Pod (150) Visual Processing Unit Improved Targeting Computer Improved Targeting Computer Grenade Launcher Peak State ------------ > --- POWER ------------ Ion Engine > --- PROPULSION ------- (None) > --- UTILITY ---------- Improved Targeting Computer Improved Targeting Computer > --- WEAPON ----------- Bore Cannon > --- INVENTORY -------- Compact Matter Pod Visual Processing Unit Improved Targeting Computer Improved Targeting Computer Grenade Launcher [Rating: 11] Favorites ----------- Power Ion Engine Engine Ion Engine Propulsion Aluminum Leg Leg Aluminum Leg Utility Improved Targeting Computer Processor Improved Targeting Computer Weapon Light Assault Rifle Ballistic Gun Light Assault Rifle Ballistic Cannon Bore Cannon Launcher Grenade Launcher Build | -11 -10 -10 ------- Run | Yrd Mat Min Slots Evolved . | . . . Power . | . . . Propulsion . | . . . Utility . | . . . Weapon . | . . . Parts Attached 9 | 5 2 2 Power 1 | 1 . . Engine 1 | 1 . . Core . | . . . Reactor . | . . . Propulsion 2 | 2 . . Treads . | . . . Leg 2 | 2 . . Wheel . | . . . Hover . | . . . Flight . | . . . Utility 2 | . 2 . Device . | . . . Storage . | . . . Processor 2 | . 2 . Hackware . | . . . Protection . | . . . Artifact . | . . . Weapon 4 | 2 . 2 Energy Gun . | . . . Energy Cannon . | . . . Ballistic Gun 2 | 2 . . Ballistic Cannon 1 | . . 1 Launcher 1 | . . 1 Special Weapon . | . . . Impact Weapon . | . . . Slashing Weapon . | . . . Piercing Weapon . | . . . Special Melee Weapon . | . . . Unidentified Prototypes . | . . . Corrupted Parts 1 | . . 1 System Corruption 6 | . . 6 Parts Lost 4 | . . 4 Power . | . . . Propulsion 2 | . . 2 Utility . | . . . Weapon 2 | . . 2 Highest Loss Streak 3 | . . 3 To Critical Strikes . | . . . Average Backups 3 | . 2 4 Power . | . . . Propulsion . | . . . Utility 2 | . 2 3 Weapon . | . . . Tool/Special . | . . . Unused Backups 4 | . . 4 Power . | . . . Propulsion . | . . . Utility 4 | . . 4 Weapon . | . . . Tool/Special . | . . . Average Slot Usage (%) 95 | . 98 94 Engine 14 | . 14 14 Leg 25 | . 28 23 Processor 27 | . 26 28 Ballistic Gun 26 | . 28 25 Peak Build Rating 11 | 5 9 11 Average Rating 8 | 3 8 9 On Entrance 4 | . 5 9 Naked Turns . | . . . Heaviest Build 9 | 7 7 9 Greatest Support 20 | 20 20 20 Greatest Overweight (x) . | . . . Average Overweight (x) . | . . . Largest Inventory Capacity 5 | 5 5 5 Average Capacity 5 | 5 5 5 Most Carried 5 | 2 3 5 Average Carried 3 | . 2 4 Final Capacity 5 | 5 5 5 Final Carried 5 | . 3 5 Class Distribution -------------------- 100% | Mutant Dominant Class ---------------- Mutant | -10/Materials Mutant | -10/Mines Resources | -11 -10 -10 ----------- Run | Yrd Mat Min Matter Collected 384 | 232 30 122 Remotely . | . . . Salvage Created 317 | . 107 210 Parts 18 | . 6 12 Haulers Intercepted . | . . . Recyclers Shooed 2 | . . 2 Parts Field Recycled . | . . . Retrieved Matter . | . . . Parts Self-Destructed . | . . . Prevented . | . . . Kills | -11 -10 -10 ------- Run | Yrd Mat Min Combat Hostiles Destroyed 19 | . 2 17 Guns 7 | . 2 5 AOE 12 | . . 12 Classes Destroyed 5 | . 2 3 Recycler 1 | . . 1 Watcher 2 | . 2 . Swarmer 2 | . . 2 Grunt 4 | . 2 2 Assembled 13 | . . 13 Best Kill Streak 13 | . 2 13 Combat Bots Only 13 | . 2 13 Max Kills in Single Turn 3 | . 1 3 Gunslinging . | . . . Exploded 3 | . . 3 Melee . | . . . Uniques/NPCs Destroyed . | . . . Combat | -11 -10 -10 -------- Run | Yrd Mat Min Hostile Shots Fired 68 | . 38 30 Missed 25 | . 14 11 Hits 43 | . 24 19 Melee 1 | . . 1 Projectile 42 | . 24 18 AOE 3 | . . 3 Critical Strikes 1 | . . 1 Damage Taken 698 | . 299 399 Core 255 | . 62 193 Absorbed by Shields . | . . . Core Remaining (%) 100 | 100 . . Volleys Fired 55 | . 28 27 Largest 2 | . 2 2 Hottest 50 | . 40 50 Shots Fired 110 | . 56 54 Gun 104 | . 56 48 Cannon . | . . . Launcher 6 | . . 6 Special . | . . . Kinetic 104 | . 56 48 Thermal . | . . . Explosive 6 | . . 6 Electromagnetic . | . . . Robot Hit Streak 14 | . 14 14 Robot Miss Streak 3 | . 3 3 Penetration Max . | . . . Secondary Targets 1 | . . 1 Max Gunslinging Chain 1 | . . 1 Shots Hit Robots 77 | . 45 32 Core Hits 53 | . 11 42 Critical Kills 1 | . . 1 Critical Parts Destroyed . | . . . Critical Strikes 1 | . . 1 Destroy 1 | . . 1 Melee Attacks . | . . . Impact . | . . . Slashing . | . . . Piercing . | . . . Sneak Attacks . | . . . Combat Hostiles . | . . . Follow-up Attacks . | . . . Damage Inflicted 1446 | . 389 1057 Guns 629 | . 389 240 Cannons . | . . . Explosions 817 | . . 817 Melee . | . . . Ramming . | . . . Kinetic 629 | . 389 240 Thermal . | . . . Explosive 817 | . . 817 Electromagnetic . | . . . Impact . | . . . Slashing . | . . . Piercing . | . . . Highest Corruption 6 | . . 6 Average Corruption 6 | . . 6 Corruption Purged . | . . . Corruption Blocked . | . . . Overload Shots . | . . . Overflow Damage 8 | . . 8 Projectiles . | . . . Explosions 8 | . . 8 Melee . | . . . Knockbacks . | . . . Impact . | . . . Kinetic . | . . . Secondary . | . . . Self-Inflicted Damage 40 | . . 40 Shots 1 | . . 1 Rammed . | . . . Targets Rammed . | . . . Kicked . | . . . Crushed . | . . . Highest Temperature 40 | . 25 40 Average Temperature 12 | . 9 15 Received Heat Transfer 277 | . 171 106 Siege Activations . | . . . Martial Activations . | . . . Shielding Activations . | . . . Robots Disrupted . | . . . Combat Hostiles . | . . . Robots Corrupted . | . . . Combat Hostiles . | . . . Parts Fried . | . . . Impact Corruptions . | . . . Robots Melted . | . . . Combat Hostiles . | . . . Parts Melted . | . . . Heat Transferred . | . . . Parts Sabotaged . | . . . Parts Stolen . | . . . Parts Stripped . | . . . Power Chain Reactions . | . . . Alert | -11 -10 -10 ------- Run | Yrd Mat Min Maximum Alert Level . | . . . Low Security (%) 100 | 100 100 100 Level 1 . | . . . Level 2 . | . . . Level 3 . | . . . Level 4 . | . . . Level 5 . | . . . High Security . | . . . Max Security . | . . . Peak Influence 101 | . 40 101 Initial . | . . . Average 19 | . 9 28 Influence Increases 228 | . 64 164 Destroy 0b10 Robot/C 120 | . 40 80 Destroy 0b10 Robot/NC 15 | . 10 5 Destroy Leader 34 | . 14 20 Allied During Kill 16 | . . 16 Destroy Structure 28 | . . 28 Lose Combat Pursuer 15 | . . 15 Influence Decreases 228 | . 64 164 Time Decay 134 | . 64 70 Lost Part 40 | . . 40 Lost Ally 54 | . . 54 Squads Dispatched 1 | . 1 . Investigation 1 | . 1 . Extermination . | . . . Reinforcement . | . . . Assault . | . . . Garrison . | . . . Intercept . | . . . Searches Triggered . | . . . Construction Impeded . | . . . Haulers Reinforced . | . . . Active Scanning Responses . | . . . Cargo Convoy Interrupts . | . . . Stealth | -11 -10 -10 --------- Run | Yrd Mat Min Distress Signals . | . . . Communications Jammed . | . . . Distress Signals . | . . . Times Spotted 33 | . 5 28 Peak Tracking Total 17 | . 2 17 Tactical Retreats 2 | . . 2 Traps | -11 -10 -10 ------- Run | Yrd Mat Min Traps Triggered . | . . . Indirectly . | . . . Trap Hack Attempts . | . . . Triggered . | . . . Disarmed . | . . . Reprogrammed . | . . . Reused . | . . . Traps Extracted . | . . . Installed . | . . . Triggered . | . . . Machines | -11 -10 -10 ---------- Run | Yrd Mat Min Machines Disabled . | . . . Max in Single Turn . | . . . Machines Repaired . | . . . Machines Dismantled . | . . . Machines Sabotaged . | . . . Overloaded Fab Kills . | . . . Hacking | -11 -10 -10 --------- Run | Yrd Mat Min Machines Accessed 1 | . 1 . Terminals 1 | . 1 . Fabricators . | . . . Repair Stations . | . . . Recycling Units . | . . . Scanalyzers . | . . . Garrison Access . | . . . Total Hacks 2 | . 2 . Successful . | . . . Failed 2 | . 2 . Catastrophic 1 | . 1 . Database Lockouts . | . . . Manual . | . . . Terminals 2 | . 2 . Fabricators . | . . . Repair Stations . | . . . Recycling Units . | . . . Scanalyzers . | . . . Garrison Access . | . . . Terminal Hacks . | . . . Fabricator Hacks . | . . . Repair Station Hacks . | . . . Recycling Unit Hacks . | . . . Scanalyzer . | . . . Garrison Access Hacks . | . . . Unauthorized Hacks . | . . . Terminals . | . . . Fabricators . | . . . Repair Stations . | . . . Recycling Units . | . . . Scanalyzers . | . . . Garrison Access . | . . . Data Cores Recovered . | . . . Used . | . . . Hacking Detections 1 | . 1 . Full Trace Events 1 | . 1 . Feedback Events . | . . . Feedback Blocked . | . . . Robot Schematics Acquired . | . . . Robots Built . | . . . Authchips . | . . . Time . | . . . Total Robot Build Rating . | . . . Part Schematics Acquired . | . . . Parts Built . | . . . Authchips . | . . . Time . | . . . Total Part Build Rating . | . . . Parts Repaired . | . . . Time . | . . . Parts Recycled . | . . . Recycled Matter . | . . . Retrieved Matter . | . . . Retrieved Components . | . . . Parts Scanalyzed . | . . . Part Schematics Acquired . | . . . Parts Damaged . | . . . Bothacking | -11 -10 -10 ------------ Run | Yrd Mat Min Used RIF Installer . | . . . Robots Hacked . | . . . Non-combat . | . . . Combat . | . . . Robot Hacks Applied . | . . . Relay Couplers Released . | . . . Fabnet Peak Effective % . | . . . Robots Rewired . | . . . Allies Hacked . | . . . Hacks Repelled . | . . . Allies | -11 -10 -10 -------- Run | Yrd Mat Min Total Allies 3 | . . 3 Largest Group 3 | . . 3 Highest-Rated Group 40 | . . 40 Highest-Rated Ally 16 | . . 16 Total Orders . | . . . Ally Attacks 21 | . . 21 Total Damage 182 | . . 182 Kills 2 | . . 2 Allies Corrupted . | . . . Allies Melted . | . . . Intel | -11 -10 -10 ------- Run | Yrd Mat Min Active Infowar (turns) . | . . . Robot Analysis Total . | . . . Derelict Logs Recovered . | . . . Drone Launches . | . . . Drone Recoveries . | . . . Exploration | -11 -10 -10 ------------- Run | Yrd Mat Min Turns Passed 649 | 58 234 357 Spaces Moved 403 | 45 129 229 Core 8 | 8 . . Treads . | . . . Legs 395 | 37 129 229 Wheels . | . . . Hover . | . . . Flight . | . . . Fastest Speed 50 | 50 120 120 Average Speed 118 | 107 120 120 Slowest Speed 120 | 120 120 120 Overloaded Moves . | . . . Propulsion Burnouts . | . . . Robots Hopped . | . . . Potential Cave-ins . | . . . Cave-ins Triggered . | . . . Exploration Rate (%) 30 | 3 28 61 Regions Visited 2 Branch Regions 1 Pre-discovered Areas . | . . . Known Exits Taken . | . . . Unknown Exits Taken 2 | 1 1 . Scrap Searched 1 | . . 1 Spaces Dug 9 | . . 9 Terrain Destroyed 40 | . . 40 Melee . | . . . Projectile . | . . . AOE 40 | . . 40 Terrain Rammed . | . . . Walls Destroyed . | . . . Machines Disabled . | . . . Actions | -11 -10 -10 --------- Run | Yrd Mat Min Total 482 | 54 163 265 Wait 4 | . . 4 Move 401 | 44 128 229 Hop . | . . . Pick Up 12 | 5 5 2 Fast Attach 1 | . . 1 Attach 7 | 5 2 . Detach . | . . . Swap 2 | . . 2 Drop . | . . . Fire 55 | . 28 27 Melee . | . . . Ram . | . . . Kick . | . . . Crush . | . . . Escape Stasis . | . . . Rewire . | . . . Trap . | . . . Miscellaneous . | . . . Route ------- -11/Scrapyard -10/Materials -10/Mines (discovered 1 exit: [*Mat]) History --------- Turn | Location | Event 14 | -11/Scrapyard | Discovered new exit (range 14) 59 | -11/Scrapyard | Entered Materials 287 | -10/Materials | Discovered new exit (range 6) 293 | -10/Materials | Entered Mines 296 | -10/Mines | Assisted by bots powering up and referring to "LRC-V3" 300 | -10/Mines | Build established: Mutant 338 | -10/Mines | Discovered new exit (range 6) 607 | -10/Mines | Assembled infested the area 612 | -10/Mines | Assisted by a Guerilla fighting off Assembled 638 | -10/Mines | Core integrity fell below 50% 650 | -10/Mines | Core integrity fell below 20% 650 | -10/Mines | Destroyed by D-53 Grenadier with Mini Grenade Launcher Last Messages --------------- as-82222 destroyed. EQ-TU8(h) system corrupted by crushing effect. EQ-TU8(h) system terminally corrupted. The unstable cave ceiling collapses. K-01 Serf collects debris. as-12331 destroyed. C-30 ARC bursts open, deploying its payload. D-53 Grenadier unfolds itself. Mercenary 1a destroyed. as-23019 destroyed. Trooper 1b destroyed. Aluminum Leg destroyed. as-39672 destroyed. K-01 Serf collects debris. Lgt. Assault Rifle destroyed. K-01 Serf destroyed. Acquired Corrupted Bore Cannon. Integrated Corrupted Bore Cannon (+6). The unstable cave ceiling collapses. Trooper 1a destroyed. Map ----- +----------------------------------------------------+ | ?????????????????????????????????????????? | | ?????????????????????????????????????????? | | ?????????????????????????????????????????? | | ?????????????????????????????????????????? | | ?????????????????????????????????????????? | | ?????????????????????????????????????????? | | ???????????????????????????????????????? $ | | ?????????????????????????????????????? | | ????????????????? ???????????????? ## | | ??????????????? ??????????????????? | | ?????????????? ??????????????????? | | ?????????????? #??????????????????? | | ??????????????? ##?????????????????? | | ??????????????? ##????????????????? | | ???????????????? ##???????????????? | | ???????????????? ##??????????????? | | ????????????????? ##?????????????? | | ????????????????? ###???????????? | | ???????###???????# % ????????????? | | ???##### ###???# dd#?????#####????? | | ???# #### ##????? #????? | | ??# # # #?????# #???## | | ?#" % =% #?????# #??## | | ?# # = #??????# #### | | ?# # % ###??????# | | ??# #?? # @* ##????????# | | ??#??????### # % ##?????????# %= | | ?????????### ?# % ##??????????## ###! | | ???? = ##??????####??# ##?## | | ??????????## %* #?????## #### ##### | | ??????????# =% ####### % | | ??????????# # # ########[ | | ??????????# #;# #??????# | | ??????????;# ############ #?????## | | ?????????#### ? ???????????# #????## | | ????????????##? ???????????# #????? | | ?????????????? ???????????## #????? | | ??????????????" ????????????## ##????? | | ??????????????##?????????????## ##?????? | | ???????????????????????????????# ##??????? | | ????????????????????????????????##???????? | | ?????????????????????????????????????????? | | ?????????????????????????????????????????? | | ?????????????????????????????????????????? | | ?????????????????????????????????????????? | | ?????????????????????????????????????????? | | ?????????????????????????????????????????? | | | | | | | +----------------------------------------------------+ Best States ------------- Heat Dissipation 25 Energy Generation 10 Energy Capacity 250 Matter Stores 300 Matter Capacity 300 Sight Range 16 Terrain Scan Density 10 Evasion (%) 55 Targeting Accuracy 12 Item Schematics ----------------- None Robot Schematics ------------------ None Fabricated ------------ Nothing Repaired ---------- Nothing Alien Tech Used ----------------- None Achievements -------------- None Challenges ------------ None Game ------ Seed SmartbombHellfireMultitool Manual? 0 Play Time 00:07:26 Cumulative 158.6 hours Start 2025.09.23 @ 21:33:36 End 2025.09.24 @ 20:34:19 Sessions 1 Manual Loads 0 Difficulty Rogue Special Mode None Game No. 515 Rogue 514 Adventurer 1 Explorer 0 Win Type - Total 0 Types 0/0/0/0/0/0/0/0/0/0 Lore% 56 Gallery% 53 Achievement% 42 Wizard Run 0 Options --------- Layout 1 ASCII 0 Keyboard 0 Movement Mouse Keybinds 0 Fullscreen 2 Font 24/Smallcaps Map View 50x35 Zoom Use 0% Tactical HUD 0 Map Filters NONE Filters NONE Steam 1 RUN: 89eb785b-48e2-40b5-a96c-84efc7ead41c